fUST/lending_fUST_20241130
["ID","MTS","AMOUNT","RATE_DAILY","PERIOD"]
[343713038,1732899036187,-3486.75198764,0.00027657,2]
[343713039,1732899036195,-103.17968912,0.00027758,2]
[343713052,1732899038859,-77.60695988,0.00027758,2]
[343713053,1732899038870,-172.077301,0.00028109,2]
[343713054,1732899038880,-1201.52818,0.00028109,2]
[343713057,1732899038890,-310.00055782,0.00028114,2]
[343713058,1732899038899,-151.0,0.0002822,6]
[343713062,1732899038909,-180.786649,0.00028249,2]
[343713064,1732899038918,-3486.75198764,0.00028327,2]
[343713067,1732899038928,-300.0,0.000284,2]
[343713069,1732899038939,-1201.52818,0.00028461,2]
[343713071,1732899038948,-151.0,0.00028493,6]
[343713073,1732899038957,-804.26133024,0.00028667,2]
[343713075,1732899038966,-587.0,0.00028728,2]
[343713076,1732899038975,-184.08,0.00028757,3]
[343713078,1732899038984,-552.29,0.00028757,3]
[343713080,1732899038994,-2379.8,0.00028757,10]
[343713082,1732899039003,-151.0,0.00028765,6]
[343713084,1732899039014,-211.89582944,0.00028766,2]
[343713086,1732899039024,-189.59725196,0.00028766,2]
[343713088,1732899039033,-170.79883628,0.00028766,2]
[343713090,1732899039042,-500.0,0.00028767,3]
[343713092,1732899039052,-500.0,0.00028767,3]
[343713094,1732899039061,-500.0,0.00028767,3]
[343713096,1732899039071,-621.63180556,0.00028767,3]
[343713098,1732899039080,-585.62523398,0.00028767,3]
[343713100,1732899039090,-158.52795257,0.00028767,3]
[343713102,1732899039099,-500.0,0.00028767,3]
[343713104,1732899039109,-500.0,0.00028767,3]
[343713105,1732899039118,-500.0,0.00028767,3]
[343713106,1732899039127,-500.0,0.00028767,3]
[343713107,1732899039137,-349.04480164,0.00028767,3]
[343713108,1732899039146,-500.0,0.00028767,3]
[343713109,1732899039156,-494.72,0.00028767,3]
[343713110,1732899039165,-500.0,0.00028767,3]
[343713111,1732899039174,-500.0,0.00028767,3]
[343713112,1732899039183,-500.0,0.00028767,3]
[343713113,1732899039191,-500.0,0.00028767,3]
[343713114,1732899039201,-500.0,0.00028767,3]
[343713115,1732899039209,-500.0,0.00028767,3]
[343713116,1732899039218,-325.38507829,0.00028767,3]
[343713117,1732899039228,-500.0,0.00028767,3]
[343713118,1732899039237,-355.16767069,0.00028767,3]
[343713119,1732899039246,-501.532201,0.00028767,3]
[343713120,1732899039255,-203.07246475,0.00028767,3]
[343713121,1732899039266,-500.0,0.00028767,3]
[343713122,1732899039275,-500.0,0.00028767,3]
[343713123,1732899039284,-500.0,0.00028767,3]
[343713124,1732899039293,-468.36529264,0.00028767,3]
[343713125,1732899039301,-500.0,0.00028767,3]
[343713126,1732899039311,-208.79046758,0.00028767,3]
[343713127,1732899039320,-500.0,0.00028767,3]
[343713129,1732899039330,-500.0,0.00028767,3]
[343713131,1732899039339,-500.0,0.00028767,3]
[343713133,1732899039348,-500.0,0.00028767,3]
[343713134,1732899039357,-500.0,0.00028767,3]
[343713136,1732899039367,-500.0,0.00028767,3]
[343713138,1732899039376,-500.0,0.00028767,3]
[343713140,1732899039386,-500.0,0.00028767,3]
[343713142,1732899039395,-500.0,0.00028767,3]
[343713144,1732899039404,-500.0,0.00028767,3]
[343713145,1732899039413,-500.0,0.00028767,3]
[343713146,1732899039423,-304.4,0.00028767,3]
[343713147,1732899039434,-500.0,0.00028767,3]
[343713148,1732899039449,-500.0,0.00028767,3]
[343713149,1732899039459,-500.0,0.00028767,3]
[343713150,1732899039468,-500.0,0.00028767,3]
[343713151,1732899039478,-500.0,0.00028767,3]
[343713152,1732899039490,-500.0,0.00028767,3]
[343713153,1732899039501,-500.0,0.00028767,3]
[343713154,1732899039513,-500.0,0.00028767,3]
[343713155,1732899039525,-500.0,0.00028767,3]
[343713156,1732899039535,-500.0,0.00028767,3]
[343713157,1732899039544,-500.0,0.00028767,3]
[343713159,1732899039554,-472.47999731,0.00028767,3]
[343713161,1732899039563,-500.0,0.00028767,3]
[343713162,1732899039572,-321.60103997,0.00028767,3]
[343713164,1732899039581,-500.0,0.00028767,3]
[343713165,1732899039591,-500.0,0.00028767,3]
[343713166,1732899039600,-500.0,0.00028767,3]
[343713167,1732899039611,-500.0,0.00028767,3]
[343713168,1732899039620,-193.64160414,0.00028767,3]
[343713169,1732899039629,-500.0,0.00028767,3]
[343713170,1732899039638,-500.0,0.00028767,3]
[343713171,1732899039648,-508.96107969,0.00028767,3]
[343713172,1732899039657,-500.0,0.00028767,3]
[343713174,1732899039666,-512.04013971,0.00028767,3]
[343713176,1732899039676,-500.0,0.00028767,3]
[343713177,1732899039685,-500.0,0.00028767,3]
[343713178,1732899039695,-500.0,0.00028767,3]
[343713179,1732899039704,-500.0,0.00028767,2]
[343713180,1732899039714,-500.0,0.00028767,2]
[343713181,1732899039723,-500.0,0.00028767,2]
[343713182,1732899039732,-290.30910291,0.00028767,2]
[343713183,1732899039741,-500.0,0.00028767,3]
[343713184,1732899039751,-500.0,0.00028767,3]
[343713185,1732899039768,-500.0,0.00028767,3]
[343713186,1732899039778,-500.0,0.00028767,3]
[343713187,1732899039787,-500.0,0.00028767,3]
[343713188,1732899039797,-500.0,0.00028767,3]
[343713189,1732899039806,-500.0,0.00028767,3]
[343713190,1732899039816,-500.0,0.00028767,3]
[343713191,1732899039825,-500.0,0.00028767,3]
[343713192,1732899039835,-500.0,0.00028767,3]
[343713193,1732899039844,-177.32480934,0.00028767,3]
[343713194,1732899039854,-500.0,0.00028767,3]
[343713195,1732899039863,-500.0,0.00028767,3]
[343713196,1732899039873,-500.0,0.00028767,3]
[343713197,1732899039882,-607.56,0.00028767,3]
[343713198,1732899039891,-500.0,0.00028767,3]
[343713199,1732899039901,-500.0,0.00028767,3]
[343713200,1732899039910,-500.0,0.00028767,3]
[343713201,1732899039919,-3094.69,0.00028767,3]
[343713202,1732899039929,-3094.69,0.00028767,3]
[343713203,1732899039938,-3094.69,0.00028767,3]
[343713204,1732899039947,-3094.69,0.00028767,3]
[343713205,1732899039956,-3094.69,0.00028767,3]
[343713206,1732899039966,-3094.69,0.00028767,3]
[343713207,1732899039976,-3094.69,0.00028767,3]
[343713208,1732899039985,-3094.69,0.00028767,3]
[343713209,1732899039995,-3094.69,0.00028767,3]
[343713210,1732899040004,-3094.69,0.00028767,3]
[343713211,1732899040018,-2992.05,0.00028767,3]
[343713212,1732899040027,-2992.05,0.00028767,3]
[343713213,1732899040036,-2992.05,0.00028767,3]
[343713214,1732899040046,-890.71637513,0.00028767,3]
[343713218,1732899040268,-2101.33362487,0.00028767,3]
[343713219,1732899040278,-2992.05,0.00028767,3]
[343713220,1732899040288,-2992.05,0.00028767,3]
[343713221,1732899040298,-2349.02433348,0.00028767,3]
[343713228,1732899040708,-643.02566652,0.00028767,3]
[343713229,1732899040719,-2992.05,0.00028767,3]
[343713230,1732899040729,-2992.05,0.00028767,3]
[343713231,1732899040738,-2992.05,0.00028767,3]
[343713232,1732899040748,-2992.05,0.00028767,3]
[343713233,1732899040757,-2992.05,0.00028767,3]
[343713234,1732899040770,-2802.97744364,0.00028767,3]
[343713242,1732899043607,-171.624829,0.00027203,2]
[343713243,1732899043617,-1828.76760035,0.00028757,10]
[343713245,1732899043826,-154.39239965,0.00028757,10]
[343713246,1732899043836,-189.07255636,0.00028767,3]
[343713247,1732899043845,-150.41762228,0.00028767,3]
[343713248,1732899043855,-500.0,0.00028767,3]
[343713249,1732899043865,-500.0,0.00028767,3]
[343713250,1732899043874,-500.0,0.00028767,3]
[343713251,1732899043883,-500.0,0.00028767,3]
[343713252,1732899043892,-500.0,0.00028767,3]
[343713253,1732899043901,-496.25359874,0.00028767,3]
[343713254,1732899043913,-3.74640126,0.00028767,3]
[343713255,1732899043922,-583.11086506,0.00028767,3]
[343713256,1732899043932,-500.0,0.00028767,3]
[343713257,1732899043942,-500.0,0.00028767,3]
[343713258,1732899043951,-657.78,0.00028767,3]
[343713259,1732899043961,-657.78,0.00028767,3]
[343713260,1732899043970,-657.78,0.00028767,3]
[343713261,1732899043979,-657.78,0.00028767,3]
[343713262,1732899043989,-657.78,0.00028767,3]
[343713263,1732899043999,-500.0,0.00028767,3]
[343713264,1732899044008,-657.78,0.00028767,3]
[343713265,1732899044021,-500.0,0.00028767,3]
[343713266,1732899044031,-500.0,0.00028767,3]
[343713267,1732899044041,-657.78,0.00028767,3]
[343713268,1732899044050,-443.86151749,0.00028767,3]
[343713269,1732899044060,-500.0,0.00028767,3]
[343713270,1732899044069,-657.78,0.00028767,3]
[343713271,1732899044079,-500.0,0.00028767,3]
[343713272,1732899044088,-657.78,0.00028767,3]
[343713273,1732899044098,-86.18001455,0.00028767,3]
[343713285,1732899046742,-413.81998545,0.00028767,3]
[343713286,1732899046752,-657.78,0.00028767,3]
[343713287,1732899046761,-500.0,0.00028767,3]
[343713288,1732899046773,-657.78,0.00028767,3]
[343713289,1732899046782,-500.0,0.00028767,3]
[343713290,1732899046792,-657.78,0.00028767,3]
[343713291,1732899046801,-500.0,0.00028767,3]
[343713292,1732899046811,-657.78,0.00028767,3]
[343713293,1732899046820,-500.0,0.00028767,3]
[343713294,1732899046829,-500.0,0.00028767,3]
[343713295,1732899046839,-500.0,0.00028767,3]
[343713296,1732899046848,-500.0,0.00028767,3]
[343713297,1732899046858,-492.0560215,0.00028767,3]
[343713298,1732899046867,-500.0,0.00028767,3]
[343713299,1732899046876,-500.0,0.00028767,3]
[343713300,1732899046886,-500.0,0.00028767,3]
[343713301,1732899046895,-500.0,0.00028767,3]
[343713302,1732899046904,-330.0,0.00028767,3]
[343713303,1732899046914,-513.89284968,0.00028767,3]
[343713304,1732899046923,-501.25101569,0.00028767,3]
[343713305,1732899046933,-507.66831936,0.00028767,3]
[343713306,1732899046943,-500.0,0.00028767,3]
[343713307,1732899046952,-530.94,0.00028767,3]
[343713308,1732899046961,-500.0,0.00028767,3]
[343713309,1732899046971,-500.0,0.00028767,3]
[343713310,1732899046980,-500.0,0.00028767,3]
[343713311,1732899046990,-188.61,0.00028767,3]
[343713312,1732899046999,-500.0,0.00028767,3]
[343713313,1732899047009,-500.0,0.00028767,3]
[343713314,1732899047020,-500.0,0.00028767,3]
[343713315,1732899047030,-500.0,0.00028767,3]
[343713316,1732899047039,-500.0,0.00028767,3]
[343713317,1732899047050,-510.85032485,0.00028767,3]
[343713318,1732899047060,-500.0,0.00028767,3]
[343713319,1732899047070,-500.0,0.00028767,3]
[343713320,1732899047079,-500.0,0.00028767,3]
[343713321,1732899047089,-500.0,0.00028767,3]
[343713322,1732899047099,-632.53,0.00028767,3]
[343713323,1732899047108,-632.53,0.00028767,3]
[343713324,1732899047117,-500.0,0.00028767,3]
[343713325,1732899047127,-632.53,0.00028767,3]
[343713326,1732899047136,-500.0,0.00028767,3]
[343713327,1732899047145,-632.53,0.00028767,3]
[343713328,1732899047155,-500.0,0.00028767,3]
[343713329,1732899047164,-500.0,0.00028767,3]
[343713330,1732899047173,-632.53,0.00028767,3]
[343713331,1732899047182,-500.0,0.00028767,3]
[343713332,1732899047191,-500.0,0.00028767,3]
[343713333,1732899047201,-632.53,0.00028767,3]
[343713334,1732899047210,-500.0,0.00028767,3]
[343713335,1732899047220,-500.0,0.00028767,3]
[343713336,1732899047230,-632.53,0.00028767,3]
[343713337,1732899047239,-500.0,0.00028767,3]
[343713338,1732899047249,-632.53,0.00028767,3]
[343713339,1732899047258,-632.53,0.00028767,3]
[343713340,1732899047270,-500.0,0.00028767,3]
[343713341,1732899047284,-632.53,0.00028767,3]
[343713342,1732899047293,-500.0,0.00028767,3]
[343713343,1732899047302,-632.53,0.00028767,3]
[343713344,1732899047312,-500.0,0.00028767,3]
[343713345,1732899047322,-500.0,0.00028767,3]
[343713346,1732899047332,-500.0,0.00028767,3]
[343713347,1732899047341,-500.0,0.00028767,3]
[343713348,1732899047351,-500.0,0.00028767,3]
[343713349,1732899047360,-500.0,0.00028767,3]
[343713350,1732899047371,-500.0,0.00028767,3]
[343713351,1732899047381,-500.0,0.00028767,3]
[343713352,1732899047390,-500.0,0.00028767,3]
[343713353,1732899047399,-500.0,0.00028767,3]
[343713354,1732899047408,-500.0,0.00028767,3]
[343713355,1732899047418,-500.0,0.00028767,3]
[343713356,1732899047427,-500.0,0.00028767,3]
[343713357,1732899047436,-500.0,0.00028767,3]
[343713358,1732899047450,-500.0,0.00028767,3]
[343713359,1732899047459,-500.0,0.00028767,3]
[343713360,1732899047468,-500.0,0.00028767,3]
[343713361,1732899047477,-500.0,0.00028767,3]
[343713362,1732899047487,-500.0,0.00028767,3]
[343713363,1732899047496,-500.0,0.00028767,3]
[343713364,1732899047505,-151.72969487,0.00028767,3]
[343713365,1732899047516,-500.0,0.00028767,3]
[343713366,1732899047533,-51.35967612,0.00028767,3]
[343713368,1732899173282,160.954217,0.00013973,2]
[343713376,1732899807664,161.622058,0.00013973,2]
[343713378,1732900026147,-248.18284616,0.00021992,2]
[343713379,1732900028087,-4751.81715384,0.00021992,2]
[343713380,1732900028109,-72.26557948,0.00022,2]
[343713381,1732900032581,-93.73442052,0.00022,2]
[343713382,1732900032608,-3477.09359502,0.00022214,2]
[343713383,1732900032637,-300.0,0.00022399,2]
[343713384,1732900032664,-300.0,0.00022399,2]
[343713385,1732900032689,-1826.9383451,0.00022399,2]
[343713386,1732900045195,-5000.0,0.0002178,2]
[343713387,1732900045226,-579.0616549,0.00022399,2]
[343713388,1732900045253,-3203.26991722,0.000224,2]
[343713389,1732900050110,-230.46404742,0.000224,2]
[343713391,1732900147274,-250.0,0.00022019,2]
[343713392,1732900147296,-5000.0,0.00022176,2]
[343713393,1732900147316,-3832.01739171,0.000224,2]
[343713394,1732900148117,-334.63553255,0.000224,2]
[343713395,1732900148141,-191.2468088,0.00022894,2]
[343713396,1732900148164,-300.0,0.00023571,2]
[343713397,1732900148186,-300.0,0.00023571,2]
[343713398,1732900148206,-167.68126766,0.00023573,2]
[343713399,1732900148231,-500.0,0.00023573,2]
[343713400,1732900148252,-501.15002246,0.00023573,2]
[343713401,1732900148273,-441.29469664,0.00023573,2]
[343713402,1732900148294,-500.0,0.00023573,2]
[343713403,1732900148316,-969.88408471,0.00023582,2]
[343713404,1732900156100,-166.0,0.00022,2]
[343713405,1732900156120,-166.0,0.00023014,2]
[343713406,1732900156142,-500.0,0.00023573,2]
[343713407,1732900156171,-578.21131209,0.00023582,2]
[343713408,1732900156198,-500.0,0.00023593,2]
[343713409,1732900156219,-192.63961902,0.00023593,2]
[343713410,1732900156450,-500.0,0.00023593,2]
[343713411,1732900156473,-500.0,0.00023593,2]
[343713412,1732900156499,-500.0,0.00023593,2]
[343713413,1732900156520,-500.0,0.00023593,2]
[343713414,1732900156542,-500.0,0.00023593,2]
[343713415,1732900156563,-500.0,0.00023593,2]
[343713416,1732900156585,-500.0,0.00023593,2]
[343713417,1732900156606,-500.0,0.00023593,2]
[343713418,1732900156627,-500.0,0.00023593,2]
[343713419,1732900156649,-500.0,0.00023593,2]
[343713420,1732900156670,-500.0,0.00023593,2]
[343713421,1732900156691,-500.0,0.00023593,2]
[343713422,1732900156713,-500.0,0.00023593,2]
[343713423,1732900156746,-500.0,0.00023593,2]
[343713424,1732900156768,-500.0,0.00023593,2]
[343713425,1732900156790,-500.0,0.00023593,2]
[343713426,1732900156811,-500.0,0.00023593,2]
[343713427,1732900156836,-500.0,0.00023593,2]
[343713428,1732900156857,-500.0,0.00023593,2]
[343713429,1732900156880,-500.0,0.00023593,2]
[343713430,1732900156902,-500.0,0.00023593,2]
[343713431,1732900156929,-500.0,0.00023593,2]
[343713432,1732900156951,-500.0,0.00023593,2]
[343713433,1732900156971,-500.0,0.00023593,2]
[343713434,1732900156996,-500.0,0.00023593,2]
[343713435,1732900157017,-500.0,0.00023593,2]
[343713436,1732900157038,-500.0,0.00023593,2]
[343713437,1732900157062,-224.14217968,0.00023593,2]
[343713438,1732900157087,-500.0,0.00023593,2]
[343713439,1732900157110,-500.0,0.00023593,2]
[343713440,1732900157131,-500.0,0.00023593,2]
[343713441,1732900157152,-500.0,0.00023593,2]
[343713442,1732900157173,-500.0,0.00023593,2]
[343713443,1732900157195,-500.0,0.00023593,2]
[343713444,1732900157218,-500.0,0.00023593,2]
[343713445,1732900157242,-500.0,0.00023593,2]
[343713446,1732900157264,-500.0,0.00023593,2]
[343713447,1732900157287,-500.0,0.00023593,2]
[343713448,1732900157308,-500.0,0.00023593,2]
[343713449,1732900157332,-500.0,0.00023593,2]
[343713450,1732900157354,-269.22251274,0.00023593,2]
[343713451,1732900157377,-500.0,0.00023593,2]
[343713452,1732900157399,-500.0,0.00023593,2]
[343713453,1732900157422,-500.0,0.00023593,2]
[343713454,1732900157444,-500.0,0.00023593,2]
[343713455,1732900157467,-500.0,0.00023593,2]
[343713456,1732900157493,-500.0,0.00023593,2]
[343713457,1732900157515,-500.0,0.00023593,2]
[343713458,1732900157539,-500.0,0.00023593,2]
[343713459,1732900157561,-500.0,0.00023593,2]
[343713460,1732900157585,-500.0,0.00023593,2]
[343713461,1732900157607,-500.0,0.00023593,2]
[343713462,1732900157629,-500.0,0.00023593,2]
[343713463,1732900157651,-500.0,0.00023593,2]
[343713464,1732900157673,-500.0,0.00023593,2]
[343713465,1732900157694,-500.0,0.00023593,2]
[343713466,1732900157715,-500.0,0.00023593,2]
[343713467,1732900157740,-500.0,0.00023593,2]
[343713468,1732900157762,-500.0,0.00023593,2]
[343713469,1732900157784,-500.0,0.00023593,2]
[343713470,1732900157805,-500.0,0.00023593,2]
[343713471,1732900157828,-596.70895847,0.00023593,2]
[343713472,1732900157856,-500.0,0.00023593,2]
[343713473,1732900157880,-500.0,0.00023593,2]
[343713474,1732900157902,-500.0,0.00023593,2]
[343713475,1732900157924,-500.0,0.00023593,2]
[343713476,1732900157947,-500.0,0.00023593,2]
[343713477,1732900157969,-500.0,0.00023593,2]
[343713478,1732900157997,-500.0,0.00023593,2]
[343713479,1732900158021,-500.0,0.00023593,2]
[343713480,1732900158044,-500.0,0.00023593,2]
[343713481,1732900158070,-500.0,0.00023593,2]
[343713482,1732900158093,-500.0,0.00023593,2]
[343713483,1732900158117,-500.0,0.00023593,2]
[343713484,1732900158139,-500.0,0.00023593,2]
[343713485,1732900158161,-500.0,0.00023593,2]
[343713486,1732900158184,-500.0,0.00023593,2]
[343713487,1732900158206,-500.0,0.00023593,2]
[343713488,1732900158232,-500.0,0.00023593,2]
[343713489,1732900158256,-500.0,0.00023593,2]
[343713490,1732900158279,-500.0,0.00023593,2]
[343713491,1732900158307,-500.0,0.00023593,2]
[343713492,1732900158331,-469.34913107,0.00023593,2]
[343713493,1732900158353,-500.0,0.00023593,2]
[343713494,1732900158376,-500.0,0.00023593,2]
[343713495,1732900158399,-500.0,0.00023593,2]
[343713496,1732900158423,-500.0,0.00023593,2]
[343713497,1732900158447,-500.0,0.00023593,2]
[343713498,1732900158470,-500.0,0.00023593,2]
[343713499,1732900158497,-500.0,0.00023593,2]
[343713500,1732900158519,-500.0,0.00023593,2]
[343713501,1732900158543,-500.0,0.00023593,2]
[343713502,1732900158565,-500.0,0.00023593,2]
[343713503,1732900158588,-500.0,0.00023593,2]
[343713504,1732900158610,-500.0,0.00023593,2]
[343713505,1732900158633,-500.0,0.00023593,2]
[343713506,1732900158655,-500.0,0.00023593,2]
[343713507,1732900158678,-500.0,0.00023593,2]
[343713508,1732900158700,-500.0,0.00023593,2]
[343713509,1732900158723,-236.16960572,0.00023593,2]
[343713510,1732900158750,-500.0,0.00023593,2]
[343713511,1732900158773,-500.0,0.00023593,2]
[343713512,1732900158794,-405.00683272,0.00023594,2]
[343713513,1732900158816,-5000.0,0.00023595,2]
[343713514,1732900158842,-24900.0,0.00023596,2]
[343713515,1732900158864,-200.0,0.00023682,2]
[343713516,1732900158887,-180.05398093,0.00024121,2]
[343713517,1732900160080,-4712.90572432,0.0002178,5]
[343713518,1732900173199,-170.63594968,0.0002178,5]
[343713521,1732900231920,-116.458326,0.0002178,5]
[343713522,1732900231932,-223.94223698,0.00023573,2]
[343713523,1732900231942,-300.0,0.00023591,2]
[343713524,1732900231951,-300.0,0.00023591,2]
[343713525,1732900231962,-9595.31076656,0.00023592,2]
[343713526,1732900231974,-12612.76697094,0.00023592,2]
[343713527,1732900231983,-819.94601907,0.00024121,2]
[343713528,1732900231992,-1548.09539674,0.00024547,2]
[343713529,1732900232003,-657.729828,0.00024564,2]
[343713530,1732900232014,-500.0,0.00024573,2]
[343713531,1732900232024,-270.00455515,0.00024597,2]
[343713532,1732900232033,-5000.0,0.00024597,2]
[343713533,1732900232043,-5000.0,0.00024597,2]
[343713534,1732900232054,-2016.21245974,0.00024597,2]
[343713612,1732900233704,-27.57587179,0.00024597,2]
[343713614,1732900238045,-335.54963217,0.00024596,2]
[343713615,1732900238160,-164.45036783,0.00024596,2]
[343713616,1732900238170,-500.0,0.00024596,2]
[343713617,1732900238179,-500.0,0.00024596,2]
[343713618,1732900238189,-500.0,0.00024596,2]
[343713619,1732900238199,-252.13583475,0.00024596,2]
[343713620,1732900238208,-500.0,0.00024596,2]
[343713621,1732900238217,-316.91541235,0.00024596,2]
[343713622,1732900238227,-500.0,0.00024596,2]
[343713623,1732900238236,-500.0,0.00024596,2]
[343713624,1732900238245,-558.51285564,0.00024596,2]
[343713625,1732900238254,-500.0,0.00024596,2]
[343713626,1732900238264,-2956.21166847,0.00024597,2]
[343713627,1732900238273,-3000.0,0.000246,2]
[343713628,1732900238282,-1693.45521646,0.0002461,2]
[343713629,1732900238294,-1306.54478354,0.0002461,2]
[343713630,1732900238303,-3000.0,0.0002462,2]
[343713631,1732900238312,-3000.0,0.0002463,2]
[343713632,1732900238322,-3460.59013206,0.00024639,2]
[343713650,1732900239838,-1539.40986794,0.00024639,2]
[343713652,1732900239849,-3363.62573875,0.0002464,2]
[343713667,1732900239997,-1974.67471925,0.0002464,2]
[343713669,1732900240006,-2017.1654796,0.00024761,2]
[343713671,1732900240016,-500.0,0.00024873,2]
[343713672,1732900240025,-169.865,0.00024966,8]
[343713673,1732900240035,-3894.66645458,0.00025021,2]
[343713674,1732900240044,-391.15476317,0.00025121,2]
[343713675,1732900240054,-1000.0,0.00025122,2]
[343713677,1732900240063,-300.0,0.000254,2]
[343713679,1732900240073,-1548.09539674,0.00025512,2]
[343713681,1732900240083,-420.0,0.00025594,2]
[343713683,1732900240092,-420.0,0.0002595,2]
[343713686,1732900240102,-1000.5,0.00026,31]
[343713687,1732900240112,-1000.5,0.00026,31]
[343713689,1732900240121,-1000.5,0.00026,31]
[343713691,1732900240130,-1000.5,0.00026,31]
[343713694,1732900240139,-1000.5,0.00026,31]
[343713695,1732900240149,-1000.5,0.00026,31]
[343713697,1732900240158,-150.5,0.00026,31]
[343713699,1732900240168,-161.0,0.00026,31]
[343713701,1732900240177,-173.983722,0.00026284,2]
[343713703,1732900240186,-660.0,0.00026384,2]
[343713705,1732900240196,-300.0,0.000264,2]
[343713707,1732900240205,-1548.09539674,0.00026477,2]
[343713709,1732900240214,-500.0,0.00026566,7]
[343713711,1732900240223,-151.0,0.000266,13]
[343713713,1732900240233,-151.0,0.00027,11]
[343713715,1732900240242,-200.0,0.00027187,2]
[343713717,1732900240251,-151.0,0.000273,15]
[343713719,1732900240260,-500.0,0.00027397,2]
[343713721,1732900240270,-300.0,0.000274,2]
[343713723,1732900240280,-1548.09539674,0.00027442,2]
[343713725,1732900240289,-151.0,0.000277,16]
[343713727,1732900240298,-587.0,0.00027767,2]
[343713729,1732900240308,-368.16,0.00027861,3]
[343713731,1732900240318,-2435.29,0.00027861,10]
[343713733,1732900240327,-2029.4,0.00027861,10]
[343713735,1732900240337,-10183.92043906,0.00027871,2]
[343713737,1732900240349,-151.0,0.00028,15]
[343713739,1732900240359,-150.0,0.00028071,2]
[343713741,1732900240369,-500.0,0.0002821,7]
[343713743,1732900240378,-10183.92043906,0.00028213,2]
[343713745,1732900240387,-1621.455,0.00028393,2]
[343713747,1732900240397,-300.0,0.000284,2]
[343713749,1732900240406,-151.0,0.000284,11]
[343713751,1732900240415,-1548.09539674,0.00028407,2]
[343713753,1732900240425,-298.4799569,0.00028448,2]
[343713755,1732900240434,-10183.92043906,0.0002846,2]
[343713757,1732900240443,-151.0,0.00028492,6]
[343713759,1732900240452,-587.0,0.00028545,2]
[343713761,1732900240462,-3000.0,0.000286,2]
[343713763,1732900240472,-3000.0,0.0002861,2]
[343713765,1732900240481,-3000.0,0.0002862,2]
[343713767,1732900240490,-3000.0,0.0002863,2]
[343713769,1732900240500,-3000.0,0.0002864,2]
[343713771,1732900240510,-3000.0,0.0002865,2]
[343713773,1732900240519,-3000.0,0.0002866,2]
[343713775,1732900240528,-313.05981127,0.00028667,2]
[343713777,1732900240537,-1410.64806364,0.00028667,2]
[343713779,1732900240546,-3000.0,0.0002867,2]
[343713781,1732900240556,-160.16766428,0.00028673,5]
[343713783,1732900240565,-500.0,0.00028673,5]
[343713785,1732900240575,-3000.0,0.0002868,2]
[343713787,1732900240584,-10183.92043907,0.0002868,2]
[343713789,1732900240593,-3000.0,0.0002869,2]
[343713791,1732900240605,-3000.0,0.000287,2]
[343713793,1732900240614,-1651.70904572,0.0002871,2]
[343713797,1732900242923,-1348.29095428,0.0002871,2]
[343713798,1732900242933,-3000.0,0.0002872,2]
[343713799,1732900242942,-810.36167439,0.0002873,2]
[343713800,1732900242954,-2189.63832561,0.0002873,2]
[343713801,1732900242964,-3000.0,0.0002874,2]
[343713802,1732900242973,-3000.0,0.0002875,2]